[Event "SixDays Budapest GM-A May 2024"]
[Site "Budapest"]
[Date "2024.05.20"]
[Round "8.2"]
[White "Nagy, Gabor"]
[Black "Tan, Jun Ying"]
[Result "1/2-1/2"]
[ECO "A11"]
[WhiteElo "2433"]
[BlackElo "2307"]
[Annotator "ChessBase"]
[PlyCount "33"]
[EventDate "2024.05.15"]
[EventType "tourn"]
[EventCountry "HUN"]
[SourceTitle "playchess.com"]
[Source "ChessBase"]
[SourceQuality "1"]
[TimeControl "40/5400+30:1800+30"]

1. c4 {[%emt 0:00:09]} c6 {[%emt 0:00:24]} 2. Nf3 {[%emt 0:00:41]} d5 {[%emt 0:00:12]} 3. e3 {[%emt 0:00:35]} Nf6 {[%emt 0:00:32]} 4. d4 {[%emt 0:00:58]} a6 {[%emt 0:00:10]} 5. Bd3 {[%emt 0:01:15]} Bg4 {[%emt 0:00:19]} 6. h3 {[%emt 0:01:19]} Bh5 {[%emt 0:01:02]} 7. Nbd2 {[%emt 0:02:45]} e6 {[%emt 0:00:42]} 8. O-O {[%emt 0:00:54]} Nbd7 {[%emt 0:01:03]} 9. b3 {[%emt 0:00:28]} Bg6 {[%emt 0:02:12]} 10. Qc2 {[%emt 0:02:45]} Bxd3 {[%emt 0:04:32]} 11. Qxd3 {[%emt 0:00:29]} Bd6 {[%emt 0:00:11]} 12. e4 {[%emt 0:01:04]} dxe4 {[%emt 0:00:39]} 13. Nxe4 {[%emt 0:00:12]} Nxe4 {[%emt 0:00:22]} 14. Qxe4 {[%emt 0:00:08]} O-O {[%emt 0:00:42]} 15. Bg5 {[%emt 0:01:33]} Be7 {[%emt 0:05:47]} 16. Bxe7 {[%emt 0:03:50]} Qxe7 {[%emt 0:00:04]} 17. Rfe1 {[%emt 0:00:18]} 1/2-1/2

[Event "SixDays Budapest GM-A May 2024"]
[Site "Budapest"]
[Date "2024.05.20"]
[Round "8.3"]
[White "Sahib Singh"]
[Black "Krastev, Alexander"]
[Result "1/2-1/2"]
[ECO "B30"]
[WhiteElo "2291"]
[BlackElo "2458"]
[Annotator "TA"]
[PlyCount "102"]
[EventDate "2024.05.15"]
[EventType "tourn"]
[EventCountry "HUN"]
[SourceTitle "playchess.com"]
[Source "ChessBase"]
[SourceQuality "1"]
[TimeControl "40/5400+30:1800+30"]

{[%evp 9,102,8,19,-8,-3,-9,-9,-11,-14,0,-8,-19,-15,-9,-12,-14,16,-58,-57,-49,-29,-31,-9,-36,-33,-46,-40,-48,-27,-31,-34,-35,-41,-34,5,-48,0,-60,-54,-54,-47,-54,-47,-49,-45,-47,-8,-79,-99,-85,-77,-68,-68,-110,-110,-355,-350,-342,-60,-60,-70,-72,-70,-65,-30,-30,-25,-38,-30,-52,-52,-52,-52,-93,-93,-334,-17,-17,-8,-17,0,0,0,0,0,0,0,0,0,0,0,0,0,0,0]} 1. e4 {[%emt 0:00:02]} c5 {[%emt 0:00:04]} 2. Nf3 {[%emt 0:00:08]} Nc6 {[%emt 0:00:29]} 3. h3 {[%emt 0:00:09]} g6 {[%emt 0:01:06]} 4. Bb5 {[%emt 0:00:04]} Bg7 {[%emt 0:07:52]} 5. O-O {[%emt 0:00:07]} e5 {[%emt 0:06:27]} 6. Bxc6 {[%emt 0:10:48]} bxc6 {[%emt 0:00:08]} 7. d3 {[%emt 0:00:11]} Ne7 {[%emt 0:01:51]} 8. Nbd2 {[%emt 0:07:50][%cal Bb1d2,Bd2c4,Bc4e3,Be3f5][%mdl 32]} O-O {[%emt 0:00:17]} 9. Nc4 {[%emt 0:00:41]} d6 {[%emt 0:12:04]} 10. b3 {[%emt 0:18:55]} h6 {[%emt 0:04:43]} 11. Bb2 {[%emt 0:01:23]} Be6 {[%emt 0:02:38]} 12. Nfd2 {[%emt 0:10:15]} g5 {[%emt 0:00:05]} 13. g4 {[%emt 0:00:11]} (13. Ne3 $11) 13... Ng6 $15 {[%emt 0:00:55]} 14. Ne3 {[%emt 0:03:10]} f6 {[%emt 0:00:06]} 15. Nf5 {[%emt 0:06:54]} Rf7 {[%emt 0:02:33]} 16. Kh2 {[%emt 0:03:55]} Bf8 {[%emt 0:06:49][%cal Oh6h5]} 17. Nf3 {[%emt 0:06:09]} Rh7 {[%emt 0:13:52]} 18. Bc1 {[%emt 0:03:28]} a5 {[%emt 0:03:07]} 19. h4 d5 {[%emt 0:00:16]} 20. h5 {[%emt 0:01:12]} Ne7 {[%emt 0:00:47]} 21. Ne3 {[%emt 0:04:44]} Nc8 22. Nd2 ({White should play} 22. a4 $11) 22... Nd6 {[%emt 0:08:59]} (22... a4 $15 {is superior.}) 23. c4 {[%emt 0:08:59]} ({White should try} 23. a4 $1 $11) 23... dxc4 {[%emt 0:01:12]} 24. dxc4 {[%emt 0:00:33]} Rd7 {[%emt 0:00:07][%cal Od6e4] White must now prevent ...Nxe4!} 25. Qf3 {[%emt 0:01:56]} Ne8 $36 {[%emt 0:21:27][%cal Oa5a4][%mdl 2048] Black fights for an advantage.} 26. Rd1 {[%emt 0:00:47]} a4 {[%emt 0:00:07] And now ...axb3 would win.} 27. Qe2 {[%emt 0:04:48]} Qa5 {[%emt 0:03:59]} 28. bxa4 {[%emt 0:00:56]} (28. Bb2 $11) 28... Qxa4 $17 {[%emt 0:00:32]} 29. a3 {[%emt 0:03:33]} Rad8 {[%emt 0:01:40]} 30. Bb2 {[%emt 0:01:18]} Nc7 {[%emt 0:00:08]} 31. Kg3 {[%emt 0:01:02]} Bf7 {[%emt 0:00:25]} 32. Nf3 $2 {[%emt 0:00:43]} (32. Kh2 $17) 32... Rxd1 $19 {[%emt 0:00:12]} 33. Rxd1 {[%emt 0:00:02]} Rxd1 {[%emt 0:00:05]} (33... Bxc4 $1 $19 34. Qe1 Bd3) 34. Qxd1 $15 {[%emt 0:00:25]} Qxd1 {[%emt 0:00:08]} 35. Nxd1 {[%emt 0:00:01]} Bxc4 {[%emt 0:00:07]} 36. Nd2 {[%emt 0:00:37]} Ba6 {[%emt 0:00:40]} 37. Ne3 {[%emt 0:00:23]} Kf7 {[%emt 0:01:18]} 38. Nec4 {[%emt 0:00:48]} Ke6 {[%emt 0:01:07]} 39. Kf3 {[%emt 0:00:16]} Nb5 {[%emt 0:00:13]} 40. Ke3 {[%emt 0:00:12]} Nd6 {[%emt 0:00:56]} 41. Kd3 {[%emt 0:30:15] [#]} Be7 $1 {[%emt 0:30:37]} 42. a4 $2 {[%emt 0:01:49] [#]} (42. Bc3 $17) 42... Nb7 $2 {[%emt 0:00:42]} (42... Bd8 $1 $19 {[%cal Rd8a5] Strongly threatening ...Ba5.} 43. Kc3 Bxc4 44. Nxc4 Nxe4+ 45. Kc2 Nxf2) 43. Bc3 $11 {[%emt 0:00:20] The position is equal.} Bd8 {[%emt 0:00:14] ...Nd6 is the strong threat.} 44. Kc2 {[%emt 0:00:49]} Nd6 {[%emt 0:00:52]} 45. Kb3 {[%emt 0:01:33]} Kd7 {[%emt 0:00:33]} 46. Nxd6 Kxd6 {[%emt 0:00:01] KBB-KBN} 47. Nc4+ $1 {[%emt 0:00:23]} Kd7 {[%emt 0:00:23]} 48. f3 {[%emt 0:00:09]} Be7 {[%emt 0:00:40]} 49. Ba5 {[%emt 0:00:25]} Kc8 {[%emt 0:00:30]} 50. Be1 {[%emt 0:00:55]} Kc7 {[%emt 0:00:53]} 51. Ba5+ {[%emt 0:00:40]} Kc8 {[%emt 0:00:17] Weighted Error Value: White=0.32/Black=0.30.  Loses game:     	White=2     	---        Missed win:     	---       	Black=2      Mistake:       	White=4     	Black=1      Inaccurate:     	White=3     	Black=4      OK:         	White=18    	Black=10     Best:        	White=2     	Black=2      Strong:       	White=1     	Black=1} 1/2-1/2

[Event "SixDays Budapest GM-A May 2024"]
[Site "Budapest"]
[Date "2024.05.20"]
[Round "8.4"]
[White "Sathvik Adiga"]
[Black "Bai, Adelard"]
[Result "1-0"]
[ECO "C55"]
[WhiteElo "2398"]
[BlackElo "2376"]
[Annotator "TA"]
[PlyCount "151"]
[EventDate "2024.05.15"]
[EventType "tourn"]
[EventCountry "HUN"]
[SourceTitle "playchess.com"]
[Source "ChessBase"]
[SourceQuality "1"]
[TimeControl "40/5400+30:1800+30"]

{[%evp 50,151,0,0,9,0,20,15,8,7,3,12,13,16,14,8,20,0,0,0,0,0,0,-27,0,0,0,-15,0,0,6,6,7,8,233,246,240,240,233,233,1047,825,879,862,1375,1341,1487,1420,1050,1300,1075,1061,1527,1534,5471,5431,29987,5747,29977,29978,29978,29979,29979,29980,29986,29987,29989,29985,29985,29986,29986,29987,29987,29986,29986,29986,29988,29987,29987,29987,29987,29988,29988,29989,29989,29990,29990,29990,29990,29990,29990,29990,29990,29991,29991,29992,29994,29995,29995,29995,29996,29996,29997,4779]} 1. e4 {[%emt 0:00:03]} e5 {[%emt 0:00:06]} 2. Nf3 {[%emt 0:00:05]} Nc6 {[%emt 0:00:05]} 3. Bc4 {[%emt 0:00:26]} Nf6 {[%emt 0:00:07]} 4. d3 {[%emt 0:00:02]} h6 {[%emt 0:00:25]} 5. O-O {[%emt 0:00:15]} d6 {[%emt 0:00:38]} 6. c3 {[%emt 0:00:06]} g5 {[%emt 0:00:32]} 7. Nbd2 {[%emt 0:01:36]} Bg7 {[%emt 0:00:14]} 8. Bb3 {[%emt 0:02:47]} O-O {[%emt 0:00:21]} 9. h3 {[%emt 0:00:04]} d5 {[%emt 0:03:48]} 10. exd5 {[%emt 0:09:59]} Nxd5 {[%emt 0:00:34]} 11. Nc4 {[%emt 0:00:11]} Nb6 {[%emt 0:11:06]} 12. Nxb6 {[%emt 0:13:52]} axb6 {[%emt 0:00:11]} 13. Be3 {[%emt 0:00:50]} g4 {[%emt 0:11:30]} 14. hxg4 {[%emt 0:05:08]} Bxg4 {[%emt 0:00:12]} 15. Qd2 {[%emt 0:00:08]} Bxf3 {[%emt 0:01:32]} 16. gxf3 Qf6 {[%emt 0:01:21]} 17. Kh2 {[%emt 0:13:32]} e4 {[%emt 0:12:59]} 18. fxe4 {[%emt 0:02:25]} Qh4+ {[%emt 0:01:34]} 19. Kg2 {[%emt 0:00:14]} Qg4+ {[%emt 0:00:08]} 20. Kh2 {[%emt 0:00:12]} Ra5 {[%emt 0:00:58]} 21. Bd5 {[%emt 0:00:50]} Ne5 {[%emt 0:03:56]} 22. f4 {[%emt 0:01:04]} Nf3+ {[%emt 0:01:51]} 23. Rxf3 {[%emt 0:00:01]} Qxf3 {[%emt 0:00:01]} 24. Rg1 {[%emt 0:04:17]} Qh5+ {[%emt 0:00:52]} 25. Kg2 {[%emt 0:01:12]} Kh7 {[%emt 0:06:01]} 26. Rh1 {[%emt 0:09:55]} (26. Bxb7 $2 {too greedy.} Bxc3 27. bxc3 Rxa2 (27... Rg8+ $2 28. Kf2 $19) 28. Qxa2 Rg8+ 29. Kf2 (29. Kf1 Qd1+ 30. Kf2 Qxg1+ 31. Ke2 Rg2+ 32. Kf3 Rg3+ 33. Ke2 Rxe3+ 34. Kd2 Qf2+ 35. Kd1 Re1#) 29... Qh2+ 30. Kf3 Qxa2 $19) 26... Qg4+ {[%emt 0:12:18]} 27. Kf2 {[%emt 0:00:09]} c6 {[%emt 0:08:56]} 28. Bb3 $1 {[%emt 0:00:19]} (28. Bxb6 $2 {perishes.} Rb5 (28... Ra6 $2 29. Bb3 $19) 29. Bb3 Rxb6 $19) 28... Rh5 {[%emt 0:04:56]} 29. Bd1 {[%emt 0:00:34]} Rxh1 {[%emt 0:00:12]} 30. Bxg4 {[%emt 0:00:03]} Rh2+ {[%emt 0:00:02]} 31. Kg3 {[%emt 0:00:49]} Rxd2 {[%emt 0:00:04]} 32. Bxd2 {[%emt 0:00:05]} Bf6 {[%emt 0:03:16]} 33. Bf5+ {[%emt 0:01:11]} Kg7 {[%emt 0:01:35]} 34. e5 {[%emt 0:01:49]} Be7 {[%emt 0:00:26]} 35. d4 {[%emt 0:01:19]} b5 {[%emt 0:02:07]} 36. Kh3 {[%emt 0:06:42]} h5 {[%emt 0:03:55]} 37. Be3 {[%emt 0:05:31]} h4 {[%emt 0:06:01]} 38. Kg4 {[%emt 0:04:56]} Rg8 {[%emt 0:00:37]} 39. Bf2 {[%emt 0:00:34]} Kh6+ {[%emt 0:01:18]} 40. Kh3 {[%emt 0:00:18]} Ra8 {[%emt 0:01:28]} 41. a3 {[%emt 0:31:16]} Bxa3 $2 {[%emt 0:31:19]} (41... Rd8 $11 {and Black has nothing to worry.}) 42. bxa3 $18 {[%emt 0:00:37]} Rxa3 {[%emt 0:00:06]} 43. Bxh4 {[%emt 0:01:09]} Rxc3+ {[%emt 0:00:07]} 44. Kg4 {[%emt 0:00:01]} b4 $2 {[%emt 0:01:22]} (44... Kg7 45. Be7 Rc4) 45. Be7 $18 {[%emt 0:00:11]} Kg7 {[%emt 0:00:34]} 46. Bxb4 {[%emt 0:00:03]} Rb3 {[%emt 0:00:36]} 47. Be7 {[%emt 0:00:17]} Rc3 {[%emt 0:00:42]} 48. Bd7 {[%emt 0:01:55]} Rc4 {[%emt 0:00:56]} 49. Bc5 {[%emt 0:00:25]} Rc1 {[%emt 0:00:19]} 50. Kg5 {[%emt 0:01:46]} Rg1+ {[%emt 0:00:13]} 51. Bg4 {[%emt 0:00:14]} Rb1 {[%emt 0:00:18]} 52. f5 {[%emt 0:00:21]} Rg1 {[%emt 0:01:06]} 53. Be7 {[%emt 0:04:55]} (53. f6+ $142 Kg8 54. d5 Rc1 55. e6 cxd5 56. Bb4 Ra1 57. Bh5 (57. e7 Ra8) 57... Kh7 58. exf7) 53... b5 {[%emt 0:00:25]} 54. e6 {[%emt 0:00:22]} fxe6 {[%emt 0:00:28]} 55. fxe6 {[%emt 0:00:05]} Rg2 {[%emt 0:00:44]} 56. Bc5 {[%emt 0:00:30]} Rg3 {[%emt 0:00:29]} 57. e7 {[%emt 0:00:12]} Re3 {[%emt 0:00:28]} 58. d5 {[%emt 0:00:19]} Re5+ {[%emt 0:00:16]} 59. Kf4 {[%emt 0:00:06]} Rxe7 {[%emt 0:00:17]} 60. Bxe7 {[%emt 0:00:06]} cxd5 {[%emt 0:00:09]} 61. Ke5 {[%emt 0:00:17]} Kf7 {[%emt 0:00:05]} 62. Bb4 {[%emt 0:00:09]} d4 {[%emt 0:00:13]} 63. Kxd4 {[%emt 0:00:09]} Kf6 {[%emt 0:00:03]} 64. Be2 {[%emt 0:00:06]} Kf5 {[%emt 0:00:04]} 65. Bxb5 {[%emt 0:00:05]} Ke6 {[%emt 0:00:03]} 66. Ke4 {[%emt 0:00:09]} Kf6 {[%emt 0:00:02]} 67. Bd7 {[%emt 0:00:17]} Kg6 {[%emt 0:00:05]} 68. Kf4 {[%emt 0:00:09]} Kf6 {[%emt 0:00:06]} 69. Bd6 {[%emt 0:00:09]} Kg6 {[%emt 0:00:03]} 70. Be6 {[%emt 0:00:17]} Kf6 {[%emt 0:00:04]} 71. Bf5 {[%emt 0:00:04]} Kf7 {[%emt 0:00:03]} 72. Kg5 {[%emt 0:00:15]} Kg7 {[%emt 0:00:05]} 73. Be6 {[%emt 0:00:05]} Kh7 {[%emt 0:00:03]} 74. Kf6 {[%emt 0:00:56]} Kh8 {[%emt 0:00:13]} 75. Kf7 {[%emt 0:00:04]} Kh7 {[%emt 0:00:07]} 76. Bf8 {[%emt 0:00:05]} 1-0

[Event "SixDays Budapest GM-A May 2024"]
[Site "Budapest"]
[Date "2024.05.20"]
[Round "8.5"]
[White "Wadsworth, Matthew J"]
[Black "Aczel, Gergely"]
[Result "1/2-1/2"]
[ECO "A13"]
[WhiteElo "2470"]
[BlackElo "2493"]
[Annotator "ChessBase"]
[PlyCount "183"]
[EventDate "2024.05.15"]
[EventType "tourn"]
[EventCountry "HUN"]
[SourceTitle "playchess.com"]
[Source "ChessBase"]
[SourceQuality "1"]
[TimeControl "40/5400+30:1800+30"]

1. c4 {[%emt 0:00:02]} e6 {[%emt 0:00:31]} 2. g3 {[%emt 0:00:08]} d5 {[%emt 0:00:04]} 3. Bg2 {[%emt 0:00:05]} Nf6 {[%emt 0:00:05]} 4. Nf3 {[%emt 0:00:08]} dxc4 {[%emt 0:00:05]} 5. Qa4+ {[%emt 0:00:07]} Bd7 {[%emt 0:00:04]} 6. Qxc4 {[%emt 0:00:11]} c5 {[%emt 0:00:04]} 7. Ne5 {[%emt 0:00:27]} Qc8 {[%emt 0:00:06]} 8. O-O {[%emt 0:00:24]} Nc6 {[%emt 0:00:05]} 9. Nxd7 {[%emt 0:00:32]} Qxd7 {[%emt 0:00:02]} 10. Nc3 {[%emt 0:00:18]} Rc8 {[%emt 0:00:50]} 11. Qa4 {[%emt 0:01:50]} Be7 {[%emt 0:01:02]} 12. d3 {[%emt 0:00:56]} O-O {[%emt 0:00:22]} 13. Bd2 {[%emt 0:00:33]} Rfd8 {[%emt 0:02:11]} 14. Rfd1 {[%emt 0:00:34]} b6 {[%emt 0:06:32]} 15. Rac1 {[%emt 0:00:55]} h6 {[%emt 0:00:16]} 16. Be1 {[%emt 0:01:13]} Ne8 {[%emt 0:23:29]} 17. e3 {[%emt 0:07:21]} Bf6 {[%emt 0:03:48]} 18. d4 {[%emt 0:15:49]} cxd4 {[%emt 0:00:08]} 19. Ne4 {[%emt 0:00:16]} Ne7 {[%emt 0:14:45]} 20. Nxf6+ {[%emt 0:02:38]} Nxf6 {[%emt 0:00:09]} 21. Rxc8 {[%emt 0:00:46]} Qxa4 {[%emt 0:05:11]} 22. Rxd8+ {[%emt 0:00:08]} Kh7 {[%emt 0:00:05]} 23. R8xd4 {[%emt 0:05:36]} Qxa2 {[%emt 0:00:20]} 24. b4 {[%emt 0:00:38]} Ned5 {[%emt 0:20:53]} 25. b5 {[%emt 0:08:57]} a5 {[%emt 0:08:47]} 26. bxa6 {[%emt 0:03:27]} Qxa6 {[%emt 0:00:02]} 27. e4 {[%emt 0:06:16]} Ne7 {[%emt 0:02:51]} 28. Bc3 {[%emt 0:09:07]} Nc6 {[%emt 0:00:37]} 29. Rd6 {[%emt 0:03:13]} Qc4 {[%emt 0:01:32]} 30. Bb2 {[%emt 0:11:19]} Qc5 {[%emt 0:00:50]} 31. R6d2 {[%emt 0:03:22]} e5 {[%emt 0:00:46]} 32. Rc1 {[%emt 0:01:24]} Qb4 {[%emt 0:01:23]} 33. Bc3 {[%emt 0:01:09]} Qa3 {[%emt 0:00:56]} 34. Rdc2 {[%emt 0:01:03]} Qa4 {[%emt 0:01:35]} 35. Ba1 {[%emt 0:03:46]} Nb4 {[%emt 0:04:17]} 36. Rd2 {[%emt 0:00:31]} Qa5 {[%emt 0:00:50]} 37. Bh3 {[%emt 0:03:44]} h5 {[%emt 0:00:43]} 38. Rb1 {[%emt 0:02:04]} Nc6 {[%emt 0:00:58]} 39. Rdb2 {[%emt 0:01:02]} Nd4 {[%emt 0:01:16]} 40. Rxb6 {[%emt 0:01:56]} Nf3+ {[%emt 0:00:09]} 41. Kg2 {[%emt 0:30:23]} Nd2 {[%emt 0:30:45]} 42. R6b5 {[%emt 0:03:44]} Qa4 {[%emt 0:00:17]} 43. R5b4 {[%emt 0:00:34]} Qa3 {[%emt 0:00:05]} 44. Bxe5 {[%emt 0:01:30]} Qf3+ {[%emt 0:02:03]} 45. Kg1 {[%emt 0:00:01]} Nxb1 {[%emt 0:00:11]} 46. Bf5+ {[%emt 0:00:34]} g6 {[%emt 0:00:19]} 47. Rxb1 {[%emt 0:00:22]} Nxe4 {[%emt 0:01:02]} 48. Bxe4 {[%emt 0:00:53]} Qxe4 49. Rb5 {[%emt 0:00:09]} Qe1+ {[%emt 0:01:00]} 50. Kg2 {[%emt 0:00:01]} Qe4+ {[%emt 0:00:21]} 51. Kg1 {[%emt 0:00:04]} Qc4 {[%emt 0:00:31]} 52. Rb1 {[%emt 0:00:19]} h4 {[%emt 0:00:36]} 53. gxh4 {[%emt 0:02:19]} Qe4 {[%emt 0:00:07]} 54. Rb5 {[%emt 0:00:08]} Qe2 {[%emt 0:00:16]} 55. Rc5 {[%emt 0:00:33]} Qe1+ {[%emt 0:00:17]} 56. Kg2 {[%emt 0:00:01]} Qb4 {[%emt 0:00:22]} 57. Rc7 {[%emt 0:01:03]} Qe4+ {[%emt 0:00:16]} 58. Kg1 {[%emt 0:00:01]} Qe1+ {[%emt 0:00:21]} 59. Kg2 {[%emt 0:00:01]} Qxe5 {[%emt 0:00:12]} 60. Rxf7+ {[%emt 0:00:11]} Kh6 {[%emt 0:00:04]} 61. Rf3 {[%emt 0:01:25]} Qe4 {[%emt 0:00:31]} 62. Kg3 {[%emt 0:00:16]} Kh5 {[%emt 0:00:18]} 63. h3 {[%emt 0:00:01]} Qxh4+ {[%emt 0:00:42]} 64. Kh2 {[%emt 0:00:52]} Qd4 {[%emt 0:00:05]} 65. Re3 {[%emt 0:00:14]} Qd5 {[%emt 0:01:16]} 66. Rg3 {[%emt 0:01:10]} Kh6 {[%emt 0:00:26]} 67. Kg1 {[%emt 0:00:06]} Kg7 {[%emt 0:00:06]} 68. Kh2 {[%emt 0:00:33]} Kf6 {[%emt 0:00:15]} 69. Kg1 {[%emt 0:00:08]} Qb7 {[%emt 0:00:17]} 70. Kh2 {[%emt 0:00:09]} Qc6 {[%emt 0:00:13]} 71. Kg1 {[%emt 0:00:06]} Qa6 {[%emt 0:00:04]} 72. Kg2 {[%emt 0:00:04]} Qc4 {[%emt 0:00:23]} 73. Kg1 {[%emt 0:00:05]} Kf5 {[%emt 0:02:07]} 74. Kg2 {[%emt 0:00:05]} Qd5+ {[%emt 0:00:16]} 75. Kg1 {[%emt 0:00:08]} Qc6 {[%emt 0:01:24]} 76. Kh2 {[%emt 0:00:05]} Qb7 {[%emt 0:00:09]} 77. Kg1 {[%emt 0:00:03]} Kf4 {[%emt 0:00:12]} 78. Kh2 {[%emt 0:00:06]} Qd5 {[%emt 0:00:18]} 79. Kg1 {[%emt 0:00:14]} Qh5 {[%emt 0:00:59]} 80. Kg2 {[%emt 0:00:08]} g5 {[%emt 0:00:13]} 81. Kg1 {[%emt 0:00:19]} Qh7 {[%emt 0:00:12]} 82. Kg2 {[%emt 0:00:06]} Qh5 {[%emt 0:00:26]} 83. Kg1 {[%emt 0:00:12]} Qd1+ {[%emt 0:00:19]} 84. Kg2 {[%emt 0:00:05]} Qd5+ {[%emt 0:00:11]} 85. Kg1 {[%emt 0:00:04]} Qb7 {[%emt 0:00:11]} 86. Kh2 {[%emt 0:00:07]} Qb1 {[%emt 0:00:39]} 87. Kg2 {[%emt 0:00:04]} Qd1 {[%emt 0:00:09]} 88. Rg4+ {[%emt 0:00:46]} Kf5 {[%emt 0:00:11]} 89. Rg3 {[%emt 0:00:18]} Ke4 {[%emt 0:00:10]} 90. Re3+ {[%emt 0:00:13]} Kf4 {[%emt 0:00:12]} 91. Rg3 {[%emt 0:00:05]} Qh5 92. Kh2 1/2-1/2

[Event "SixDays Budapest GM-A May 2024"]
[Site "Budapest"]
[Date "2024.05.21"]
[Round "9.2"]
[White "Bai, Adelard"]
[Black "Wadsworth, Matthew J"]
[Result "0-1"]
[ECO "D11"]
[WhiteElo "2376"]
[BlackElo "2470"]
[Annotator "TA"]
[PlyCount "80"]
[EventDate "2024.05.15"]
[EventType "tourn"]
[EventCountry "HUN"]
[SourceTitle "playchess.com"]
[Source "ChessBase"]
[SourceQuality "1"]
[TimeControl "40/5400+30:1800+30"]

{[%evp 9,80,15,19,20,9,17,6,8,35,21,18,29,32,-7,17,15,7,-12,-10,-16,-6,-6,-5,-14,-17,-79,-24,-98,-97,-97,-93,-81,-50,-68,-11,-140,-145,-151,-89,-141,-165,-146,-79,-85,-82,-126,-122,-122,-108,-137,-95,-106,-93,-108,-106,-185,-191,-321,-301,-583,-358,-1373,-1338,-29986,-29987,-29990,-29991,-29991,-29992,-29996,-29997,-29997,-29995]} 1. d4 {[%emt 0:00:03]} d5 {[%emt 0:09:47]} 2. c4 {[%emt 0:00:08]} c6 {[%emt 0:02:32]} 3. Nf3 {[%emt 0:00:21]} Nf6 {[%emt 0:00:06]} 4. g3 {[%emt 0:00:07]} Bf5 {[%emt 0:00:13]} 5. Nc3 {[%emt 0:00:07]} e6 {[%emt 0:00:07]} 6. Nh4 {[%emt 0:00:05]} dxc4 {[%emt 0:00:29]} 7. Nxf5 {[%emt 0:00:07]} exf5 {[%emt 0:00:08]} 8. e3 {[%emt 0:00:03] The position is equal.} Bd6 {[%emt 0:00:10]} 9. Bxc4 {[%emt 0:00:07]} O-O {[%emt 0:00:23]} 10. Qf3 {[%emt 0:02:02]} g6 {[%emt 0:01:32]} 11. Bd2 {[%emt 0:05:12]} Qe7 {[%emt 0:03:04]} 12. O-O {[%emt 0:14:14]} Nbd7 {[%emt 0:01:31]} 13. Bd3 {[%emt 0:02:35]} Rfe8 {[%emt 0:01:10]} 14. Rfc1 {[%emt 0:09:37]} Ne4 {[%emt 0:04:21]} 15. Be1 {[%emt 0:04:27]} Ndf6 {[%emt 0:02:50]} 16. Rab1 {[%emt 0:03:25]} h5 {[%emt 0:02:36][%cal Oh5h4]} 17. b4 {[%emt 0:08:10]} a6 {[%emt 0:10:08]} (17... Bxb4 18. Rxb4 Ng5 19. Qg2 Qxb4 20. Ne4 $11) (17... h4 $1 $17) 18. Qe2 {[%emt 0:07:14]} (18. h4 $11) 18... h4 $17 {[%emt 0:04:13]} (18... Bxb4 $2 19. Nxe4 fxe4 20. Bxb4 $18) 19. Nxe4 {[%emt 0:04:46]} fxe4 {[%emt 0:01:29]} 20. Bc4 {[%emt 0:00:16]} Qd7 {[%emt 0:02:55]} 21. a4 {[%emt 0:08:05]} Nh7 {[%emt 0:08:14]} (21... Kg7 $15 22. Bc3 b5) 22. Qf1 {[%emt 0:04:28]} (22. f4 $11 {keeps the balance.}) 22... Ng5 {[%emt 0:06:39] ...Nf3+ would now be deadly.} 23. Be2 {[%emt 0:01:37]} Kg7 {[%emt 0:04:42]} ({Black should try} 23... Nf3+ 24. Bxf3 exf3) 24. Qg2 {[%emt 0:04:43]} ({White should play} 24. Bc3) 24... Rh8 {[%emt 0:05:28]} 25. d5 {[%emt 0:07:44]} hxg3 {[%emt 0:05:53]} (25... cxd5 $142 {And now ...f6 would win.} 26. gxh4 Nh3+ 27. Kh1 Rxh4) 26. fxg3 {[%emt 0:04:05]} cxd5 {[%emt 0:02:41] Black has more active pieces.} 27. h4 {[%emt 0:02:33]} Nh3+ {[%emt 0:01:45]} 28. Kh1 {[%emt 0:00:20]} Be5 $1 $36 {[%emt 0:00:20][%mdl 2048] Black has strong initiative.} 29. Rd1 {[%emt 0:03:09]} Qe6 {[%emt 0:02:18]} 30. Rbc1 {[%emt 0:02:14]} g5 {[%emt 0:01:15]} 31. Rc5 {[%emt 0:01:34]} (31. g4 $2 Rxh4 32. Bxh4 Rh8 33. Qxh3 Rxh4 $19 (33... gxh4 $2 34. Rf1 $18) (33... gxh4 $2 34. Rf1 $18)) 31... Rad8 {[%emt 0:00:30]} 32. a5 {[%emt 0:00:38] [#]} (32. b5 $17) 32... g4 $1 $19 {[%emt 0:01:15]} 33. Bf1 {[%emt 0:02:12] [#]} (33. b5 $142) 33... Ng5 $1 {[%emt 0:00:42]} 34. Qa2 $2 {[%emt 0:00:30]} (34. Be2 {keeps fighting.}) 34... Qf6 {[%emt 0:03:22]} 35. Bg2 {[%emt 0:00:29]} (35. Qe2 Nf3 36. Rdxd5) 35... Nf3 {[%emt 0:01:06]} 36. Rdxd5 {[%emt 0:00:31] [#]} Bxg3 $1 {[%emt 0:03:42][%mdl 512] Black mates.} 37. Bxg3 {[%emt 0:00:25]} (37. Bxf3 Rxh4+) 37... Rxh4+ {[%emt 0:00:21]} (37... Nxh4 $2 {loses.} 38. Rxd8 (38. Bxe4 $2 {leads to mate.} Qf1+ 39. Kh2 Nf3#) 38... Qxd8 39. Be5+ (39. Bxe4 {is a self mate.} Qd1+) 39... f6 40. Rc7+ $18) 38. Bh3 {[%emt 0:00:05]} Rxh3+ {[%emt 0:00:16]} 39. Kg2 {[%emt 0:00:02]} Nh4+ {[%emt 0:00:38]} 40. Kg1 {[%emt 0:00:10]} Rxg3+ {[%emt 0:00:16] Weighted Error Value: White=0.62/Black=0.18 (very precise) .  Mistake:       	White=8     	Black=4      Inaccurate:     	White=3     	Black=4      OK:         	White=9     	Black=6      Best:        	White=1     	Black=5      Strong:       	---       	Black=3} 0-1